bitfinex-derivatives/quotes_SOLF0:USTF0_20250829
["timestamp","ask_amount","ask_price","bid_price","bid_amount"]
[1756480428287,124.9051353,208.96,208.84,4.00788486]
[1756480428288,11.887,208.95,208.84,4.00788486]
[1756480428587,11.887,208.95,208.83,4.00788486]
[1756480428890,7.58,208.95,208.82,9.16788486]
[1756480429383,7.58,208.95,208.83,9.16788486]
[1756480430183,7.58,208.95,208.83,5.16]
[1756480431886,7.58,208.95,208.8,4.00788486]
[1756480431887,11.20169115,208.92,208.8,4.00788486]
[1756480432187,4.3091,208.85,208.77,180.66006992]
[1756480432389,7.58,208.87,208.77,185.82006992]
[1756480432582,7.58,208.94,208.77,189.82795478]
[1756480432890,11.8877,208.91,208.79,4.00788486]
[1756480433090,124.9051353,208.96,208.77,185.82006992]
[1756480433091,132.4851353,208.96,208.81,4.00788486]
[1756480433287,132.4851353,208.96,208.83,5.16]
[1756480434283,132.4851353,208.96,208.84,4.00788486]
[1756480434590,7.58,209.0,208.85,9.16788486]
[1756480435181,7.58,209.0,208.89,67.0155]
[1756480436190,67.79203475,209.07,208.89,67.0155]
[1756480436191,7.58,209.04,208.9,5.16]
[1756480437794,7.58,209.04,208.91,5.16]
[1756480437995,7.58,209.04,208.91,9.16788486]
[1756480438797,7.58,209.04,208.91,5.16]
[1756480439790,7.58,209.04,208.91,9.16788486]
[1756480439992,7.58,209.04,208.91,5.16]
[1756480440196,4.3054,209.03,208.91,5.16]
[1756480440395,7.58,209.04,208.91,5.16]
[1756480441597,7.58,209.04,208.93,5.16]
[1756480441797,7.58,209.04,208.88,9.16788486]
[1756480441998,7.58,209.05,208.88,5.16]
[1756480442696,7.58,208.99,208.88,5.16]
[1756480443795,7.58,208.99,208.88,72.1787]
[1756480443995,7.58,208.99,208.89,67.0162]
[1756480444302,7.58,208.99,208.93,4.3072]
[1756480444494,7.58,208.99,208.9,67.0132]
[1756480444999,7.58,208.99,208.95,4.3067]
[1756480445593,12.0345259,209.06,208.91,67.0098]
[1756480445799,7.58,209.05,208.95,5.16]
[1756480446602,66.9592,209.07,208.91,72.1598]
[1756480446802,7.32,209.06,208.92,67.0063]
[1756480446997,11.20169115,209.06,208.91,72.1598]
[1756480447295,7.32,209.05,208.95,4.3068]
[1756480447891,7.32,209.01,208.92,4.3074]
[1756480448794,66.975,209.02,208.9,4.3079]
[1756480449002,125.76,209.03,208.86,67.0245]
[1756480449003,7.32,209.01,208.92,67.0069]
[1756480449193,7.32,209.01,208.89,83.36749115]
[1756480449393,7.32,209.01,208.89,16.35169115]
[1756480449796,7.32,209.01,208.9,5.15]
[1756480450200,7.32,209.06,208.9,5.15]
[1756480450401,11.6248,209.06,208.9,5.15]
[1756480450701,7.32,209.06,208.9,5.15]
[1756480451403,4.3052,209.04,208.9,5.15]
[1756480451602,7.32,209.06,208.9,5.15]
[1756480452597,11.20169115,209.05,208.9,5.15]
[1756480452797,7.32,209.04,208.9,5.15]
[1756480454405,4.3053,209.03,208.9,5.15]
[1756480454605,11.20169115,209.01,208.84,4.00788486]
[1756480454805,7.32,209.0,208.85,5.15]
[1756480455508,7.32,208.97,208.86,67.0255]
[1756480456104,11.20169115,209.01,208.89,72.1664]
[1756480456301,7.32,209.01,208.89,72.1664]
[1756480456506,18.52169115,209.01,208.89,5.15]
[1756480456702,7.32,208.96,208.84,72.1814]
[1756480456906,7.32,208.96,208.85,67.0294]
[1756480457102,4.3071,208.95,208.86,4.3086]
[1756480457499,4.3071,208.95,208.84,5.15]
[1756480458204,18.52169115,208.95,208.84,5.15]
[1756480458406,18.52169115,208.95,208.8,67.0454]
[1756480458407,7.32,208.94,208.8,67.0454]
[1756480459003,4.3074,208.93,208.84,4.3092]
[1756480459200,7.32,208.92,208.84,4.3092]
[1756480459411,7.32,208.92,208.79,5.16]
[1756480459412,7.32,208.9,208.79,5.16]
[1756480459599,11.628,208.9,208.83,4.3094]
[1756480459805,11.628,208.9,208.79,5.16]
[1756480461207,7.32,208.9,208.79,5.16]
[1756480461910,4.3085,208.88,208.81,4.3096]
[1756480462110,7.32,208.9,208.81,4.3096]
[1756480462412,11.628,208.9,208.82,4.3094]
[1756480462613,7.32,208.87,208.73,5.16]
[1756480462908,68.3,208.86,208.73,5.16]
[1756480463106,7.32,208.85,208.73,5.16]
[1756480463713,7.32,208.85,208.68,452.56384649]
[1756480463714,11.6298,208.82,208.68,5.16]
[1756480463910,7.32,208.82,208.68,5.16]
[1756480464810,4.3102,208.8,208.68,5.16]
[1756480465013,35.02,208.82,208.68,5.16]
[1756480466212,7.32,208.82,208.68,5.16]
[1756480466413,4.3098,208.81,208.68,5.16]
[1756480466714,7.32,208.8,208.68,5.16]
[1756480467414,7.32,208.79,208.63,9.16788486]
[1756480467607,7.32,208.79,208.63,5.16]
[1756480468207,7.32,208.76,208.63,9.16788486]
[1756480468412,7.32,208.76,208.63,5.16]
[1756480468710,4.3111,208.75,208.63,5.16]
[1756480469013,7.32,208.74,208.63,5.16]
[1756480470109,7.32,208.74,208.6,4.00788486]
[1756480470110,54.16,208.73,208.59,4.00788486]
[1756480470314,7.32,208.72,208.59,67.1107]
[1756480470617,4.3121,208.71,208.61,4.3139]
[1756480471213,7.32,208.72,208.59,67.1127]
[1756480471817,4.3119,208.71,208.61,4.3139]
[1756480472708,11.6323,208.7,208.61,4.3139]
[1756480472914,22.83399115,208.7,208.61,4.3139]
[1756480473115,18.52169115,208.7,208.58,5.16]
[1756480473713,7.32,208.69,208.58,5.16]
[1756480474015,7.32,208.69,208.53,154.0506]
[1756480474319,7.32,208.69,208.54,5.16]
[1756480474907,4.3129,208.66,208.54,5.16]
[1756480475110,7.32,208.7,208.54,5.16]
[1756480475516,7.32,208.7,208.58,5.16]
[1756480476124,127.52,208.75,208.58,5.16]
[1756480476613,7.32,208.75,208.58,5.16]
[1756480476917,125.6,208.74,208.58,5.16]
[1756480477110,129.9113,208.74,208.58,5.16]
[1756480477310,4.3113,208.74,208.58,5.16]
[1756480477711,132.92,208.75,208.53,86.92]
[1756480477712,7.32,208.75,208.61,11.20169115]
[1756480477917,7.32,208.75,208.62,5.17]
[1756480479113,11.631,208.75,208.62,5.17]
[1756480479321,7.72,208.73,208.56,5.17]
[1756480479521,7.72,208.69,208.56,5.17]
[1756480479720,7.72,208.64,208.52,5.17]
[1756480480717,7.72,208.64,208.56,4.3149]
[1756480480922,12.0335,208.64,208.56,4.3149]
[1756480481120,7.72,208.64,208.52,5.17]
[1756480481620,7.72,208.64,208.55,67.1249]
[1756480482523,102.32,208.68,208.57,67.1184]
[1756480482711,133.28,208.69,208.57,67.1184]
[1756480483215,7.72,208.69,208.57,67.1184]
[1756480483416,7.72,208.69,208.59,67.1124]
[1756480483617,7.72,208.69,208.6,72.2784]
[1756480484422,7.72,208.69,208.65,4.3129]
[1756480484824,12.0322,208.7,208.63,4.3135]
[1756480485121,7.72,208.7,208.57,67.1184]
[1756480485716,7.72,208.7,208.59,67.1118]
[1756480486120,125.56,208.69,208.59,67.1118]
[1756480486317,125.56,208.69,208.57,72.2884]
[1756480487223,7.72,208.66,208.58,4.3143]
[1756480487424,7.72,208.66,208.53,5.17]
[1756480488022,329.68,208.71,208.59,72.2819]
[1756480488223,125.54,208.7,208.59,5.17]
[1756480488629,7.72,208.69,208.59,5.17]
[1756480489731,7.72,208.69,208.59,72.2814]
[1756480490623,7.72,208.69,208.63,4.3134]
[1756480490826,7.72,208.69,208.59,5.17]
[1756480491024,7.72,208.7,208.61,4.3139]
[1756480491328,7.72,208.7,208.55,5.17]
[1756480491625,4.3128,208.67,208.55,5.17]
[1756480491820,125.5,208.66,208.55,5.17]
[1756480492920,7.72,208.67,208.55,16.37169115]
[1756480493125,125.5,208.68,208.56,5.17]
[1756480493630,7.72,208.67,208.56,5.17]
[1756480494524,11.20169115,208.67,208.51,5.17]
[1756480494725,7.72,208.66,208.51,5.17]
[1756480495125,7.72,208.66,208.47,286.59483117]
[1756480495126,11.20169115,208.63,208.47,286.59483117]
[1756480495325,125.5,208.68,208.47,286.59483117]
[1756480495326,7.72,208.58,208.47,286.59483117]
[1756480495532,7.72,208.56,208.47,286.59483117]
[1756480495726,4.3153,208.55,208.47,286.59483117]
[1756480495922,7.72,208.56,208.47,286.59483117]
[1756480496327,7.72,208.56,208.46,5.17]
[1756480497232,12.035,208.56,208.4,5.17]
[1756480497428,12.035,208.56,208.4,9.17788486]
[1756480497628,12.035,208.56,208.41,5.17]
[1756480499031,7.72,208.54,208.41,72.3389]
[1756480499630,12.0356,208.54,208.42,67.1669]
[1756480499830,18.92169115,208.61,208.49,5.17]
[1756480500236,4.3143,208.6,208.51,4.3158]
[1756480500431,7.72,208.61,208.51,67.1375]
[1756480500630,133.18,208.65,208.54,67.1275]
[1756480500833,133.18,208.65,208.53,67.1307]
[1756480500834,7.72,208.65,208.56,5.17]
[1756480501338,333.16169115,208.71,208.56,5.17]
[1756480501339,7.72,208.7,208.59,67.1124]
[1756480501531,7.72,208.7,208.61,67.1055]
[1756480502030,7.72,208.7,208.6,5.17]
[1756480502031,7.72,208.7,208.65,4.3131]
[1756480502739,7.72,208.75,208.65,67.0921]
[1756480503146,7.72,208.75,208.67,67.0862]
[1756480503439,11.20169115,208.82,208.67,67.0862]
[1756480503440,120.0,208.78,208.67,67.0862]
[1756480504041,120.0,208.78,208.7,4.3118]
[1756480504248,120.0,208.78,208.63,11.20169115]
[1756480504249,7.72,208.72,208.61,4.00788486]
[1756480504542,67.0678,208.73,208.57,72.2877]
[1756480504543,4.3125,208.68,208.57,5.17]
[1756480504742,7.72,208.65,208.51,5.17]
[1756480504942,125.42,208.64,208.51,5.17]
[1756480505130,4.3133,208.64,208.51,72.3072]
[1756480505333,125.4,208.64,208.52,67.1345]
[1756480505537,125.4,208.64,208.51,9.17788486]
[1756480505740,4.3135,208.63,208.53,4.3156]
[1756480505945,74.8201,208.63,208.51,5.17]
[1756480506145,74.8201,208.63,208.5,72.311]
[1756480506146,7.72,208.63,208.5,72.311]
[1756480506343,7.72,208.63,208.5,9.17788486]
[1756480506742,7.72,208.63,208.5,5.17]
[1756480507045,125.4,208.64,208.52,4.00788486]
[1756480507740,7.38,208.67,208.56,4.00788486]
[1756480507947,7.38,208.67,208.57,4.00788486]
[1756480508139,7.38,208.67,208.57,9.17788486]
[1756480508341,7.38,208.72,208.58,4.00788486]
[1756480508541,7.38,208.72,208.61,4.00788486]
[1756480508735,30.76,208.74,208.62,5.17]
[1756480509049,18.58169115,208.78,208.62,5.17]
[1756480509050,87.36,208.77,208.62,9.17788486]
[1756480509344,4.3108,208.76,208.64,9.17788486]
[1756480510141,125.81356842,208.8,208.66,9.17788486]
[1756480510342,125.81356842,208.8,208.69,4.00788486]
[1756480510547,329.54,208.83,208.71,4.00788486]
[1756480510747,125.36,208.88,208.73,4.00788486]
[1756480511048,125.36,208.88,208.74,4.00788486]
[1756480511949,7.38,208.9,208.75,5.17]
[1756480512149,71.12,208.9,208.75,20.37957601]
[1756480512747,7.38,208.9,208.77,4.00788486]
[1756480513151,7.38,208.9,208.75,9.17788486]
[1756480513353,7.38,208.9,208.75,5.17]
[1756480513553,7.38,208.9,208.75,9.17788486]
[1756480514445,7.38,208.9,208.78,67.0516]
[1756480514653,7.38,208.9,208.77,9.17788486]
[1756480514951,7.38,208.9,208.78,67.0508]
[1756480515251,103.12,208.94,208.8,5.17]
[1756480515454,7.38,209.02,208.84,5.17]
[1756480515651,7.38,209.02,208.85,4.00788486]
[1756480515844,7.38,209.02,208.83,24.12636239]
[1756480515845,7.38,209.02,208.86,9.17788486]
[1756480516253,7.38,209.02,208.87,5.17]
[1756480516850,7.38,209.02,208.82,5.17]
[1756480517751,26.1625159,209.02,208.82,5.17]
[1756480518056,7.38,209.0,208.82,5.17]
[1756480519252,7.38,209.0,208.83,18.7825159]
[1756480519449,7.38,209.0,208.84,5.12]
[1756480520555,7.38,209.0,208.84,62.52]
[1756480520957,7.38,209.0,208.85,5.12]
[1756480521666,7.38,208.98,208.85,5.12]
[1756480523156,11.6853,209.03,208.85,5.12]
[1756480523351,7.38,209.03,208.91,67.0093]
[1756480523555,7.38,209.03,208.92,67.006]
[1756480523756,7.38,209.03,208.94,4.3071]
[1756480523948,125.9297479,209.04,208.94,66.9974]
[1756480524253,7.38,209.08,208.99,66.9832]
[1756480524454,4.3029,209.15,208.97,5.12]
[1756480524455,7.38,209.12,208.97,5.12]
[1756480524652,7.38,209.12,208.97,72.1099]
[1756480525048,7.38,209.12,208.98,66.9872]
[1756480525559,7.38,209.12,208.99,5.12]
[1756480526747,7.38,209.12,209.0,66.9789]
[1756480526957,7.38,209.12,209.02,5.12]
[1756480527260,0.83247614,209.16,209.04,66.9662]
[1756480527551,0.83247614,209.16,209.05,66.965]
[1756480527749,7.38,209.18,209.06,5.12]
[1756480527950,321.8,209.2,209.09,66.9518]
[1756480528157,7.38,209.22,209.1,5.12]
[1756480528358,7.38,209.31,209.14,18.7825159]
[1756480528548,124.0,209.54,209.14,18.7825159]
[1756480528549,321.68,209.46,209.16,5.12]
[1756480528751,321.68,209.46,209.06,321.68]
[1756480528752,125.08,209.44,209.2,5.12]
[1756480528950,7.38,209.43,209.2,18.48]
[1756480529352,7.38,209.39,209.17,10.34]
[1756480529554,0.83152135,209.39,209.14,15.46]
[1756480529749,0.83152135,209.39,209.15,19.14]
[1756480529952,7.38,209.38,209.16,5.12]
[1756480530152,7.38,209.38,209.16,29.18]
[1756480530353,7.38,209.38,209.17,18.7825159]
[1756480530554,7.38,209.38,209.18,5.12]
[1756480530753,7.38,209.34,209.18,5.12]
[1756480531155,7.38,209.34,209.2,5.12]
[1756480531657,0.83152135,209.39,209.23,5.12]
[1756480531858,7.38,209.4,209.23,5.12]
[1756480532256,15.96,209.44,209.28,5.12]
[1756480532759,7.38,209.46,209.3,5.12]
[1756480533159,7.38,209.46,209.33,5.12]
[1756480533366,7.38,209.46,209.34,37.5]
[1756480533567,113.29111424,209.52,209.34,37.5]
[1756480533568,7.38,209.51,209.35,5.12]
[1756480533954,7.38,209.56,209.37,18.7825159]
[1756480534159,7.38,209.56,209.38,5.12]
[1756480534356,7.38,209.57,209.33,18.7825159]
[1756480534560,340.2625159,209.58,209.33,18.7825159]
[1756480534561,7.38,209.48,209.33,5.12]
[1756480535060,7.38,209.48,209.35,5.12]
[1756480536068,66.8323,209.47,209.35,5.12]
[1756480536361,66.831,209.47,209.35,5.12]
[1756480536566,66.831,209.47,209.31,56.3025159]
[1756480536763,7.39,209.44,209.3,5.13]
[1756480537658,11.6855,209.51,209.32,5.13]
[1756480537858,7.39,209.51,209.32,5.13]
[1756480538272,4.2958,209.5,209.32,18.83]
[1756480538566,7.39,209.49,209.32,18.83]
[1756480538765,7.39,209.49,209.32,5.13]
[1756480538960,4.297,209.44,209.29,38.5825159]
[1756480539163,7.39,209.43,209.25,105.69]
[1756480539562,6.38,209.42,209.25,5.13]
[1756480539770,7.39,209.41,209.25,5.13]
[1756480540968,7.39,209.37,209.25,5.13]
[1756480541368,4.2988,209.35,209.22,321.48]
[1756480541569,7.39,209.37,209.22,321.48]
[1756480542073,7.39,209.37,209.04,1377.82]
[1756480542074,18.7825159,209.36,209.14,5.13]
[1756480542277,7.39,209.34,209.16,5.13]
[1756480542465,83.13,209.34,209.16,5.13]
[1756480542869,7.39,209.33,209.11,49.13]
[1756480543074,7.39,209.33,209.16,5.13]
[1756480543675,11.6892,209.33,209.18,4.3021]
[1756480543876,74.2662,209.33,209.18,4.3021]
[1756480544276,7.39,209.27,209.16,5.13]
[1756480544871,4.3006,209.26,209.11,5.13]
[1756480545077,7.39,209.27,209.13,5.13]
[1756480545371,7.39,209.27,209.15,4.3027]
[1756480545570,7.39,209.27,209.15,66.933]
[1756480545778,84.98,209.34,209.18,72.0533]
[1756480546176,7.39,209.35,209.18,72.0533]
[1756480546366,7.39,209.35,209.18,5.13]
[1756480547367,128.52,209.35,209.14,18.7825159]
[1756480547573,7.39,209.34,209.14,18.7825159]
[1756480547772,128.52,209.35,209.14,18.7825159]
[1756480548072,7.39,209.3,209.15,5.13]
[1756480548572,7.39,209.34,209.15,5.13]
[1756480549768,7.39,209.34,209.2,5.13]
[1756480550367,4.2979,209.39,209.2,5.13]
[1756480550577,7.39,209.39,209.2,5.13]
[1756480550969,7.39,209.4,209.2,5.13]
[1756480551174,7.39,209.38,209.14,5.13]
[1756480551369,21.76,209.38,209.14,5.13]
[1756480551572,7.39,209.35,209.14,5.13]
[1756480551773,4.2993,209.32,209.14,5.13]
[1756480551973,46.61,209.35,209.17,5.13]
[1756480552477,112.13,209.35,209.17,5.13]
[1756480552676,112.13,209.35,209.17,72.0562]
[1756480552878,7.39,209.34,209.17,72.0562]
[1756480553178,7.39,209.34,209.2,4.3017]
[1756480554081,74.2655,209.34,209.17,5.13]
[1756480554381,7.39,209.32,209.17,5.13]
[1756480555178,66.876,209.33,209.11,23.9125159]
[1756480555381,7.39,209.32,209.12,5.13]
[1756480556482,4.2995,209.31,209.18,66.9228]
[1756480556980,4.2995,209.31,209.2,4.3017]
[1756480557173,7.39,209.28,209.15,5.13]
[1756480557374,7.39,209.28,209.15,72.0626]
[1756480557977,7.39,209.28,209.16,4.3024]
[1756480557978,4.3003,209.27,209.16,4.3024]
[1756480558178,7.39,209.28,209.17,66.9263]
[1756480558574,7.39,209.34,209.18,5.13]
[1756480558772,7.39,209.34,209.19,66.92]
[1756480559477,7.39,209.34,209.23,4.3011]
[1756480559874,7.39,209.34,209.19,66.92]
[1756480560078,7.39,209.34,209.22,66.9084]
[1756480560284,7.39,209.34,209.18,5.13]
[1756480560478,4.2993,209.33,209.2,66.9156]
[1756480560683,4.2993,209.33,209.21,66.9138]
[1756480561077,7.39,209.34,209.26,4.3005]
[1756480561278,7.39,209.39,209.26,66.8976]
[1756480561482,7.39,209.39,209.24,72.0339]
[1756480561483,7.39,209.39,209.31,66.8801]
[1756480561780,7.39,209.39,209.32,4.2991]
[1756480561978,7.39,209.46,209.31,66.882]
[1756480562179,7.39,209.46,209.33,66.8734]
[1756480562582,7.39,209.44,209.29,5.13]
[1756480562781,7.39,209.4,209.31,66.8799]
[1756480562986,7.39,209.48,209.35,66.869]
[1756480563380,7.39,209.48,209.33,72.0048]
[1756480563381,7.39,209.48,209.36,66.8659]
[1756480563581,66.7875,209.61,209.4,66.8523]
[1756480563778,7.39,209.54,209.41,66.8497]
[1756480563983,7.39,209.54,209.39,66.8564]
[1756480564584,130.08,209.57,209.37,5.13]
[1756480564784,7.39,209.52,209.37,5.13]
[1756480565591,8.22084637,209.58,209.35,5.13]
[1756480565792,7.39,209.58,209.43,5.13]
[1756480566083,4.96,209.63,209.44,23.80645615]
[1756480566285,0.83072736,209.63,209.45,8.97259174]
[1756480566491,11.6829,209.64,209.48,3.84259174]
[1756480566694,7.39,209.64,209.46,22.51904789]
[1756480566896,8.22054893,209.64,209.46,22.51904789]
[1756480567095,8.22054893,209.64,209.47,3.84259174]
[1756480567497,4.293,209.63,209.48,3.84259174]
[1756480567899,4.293,209.63,209.47,3.84259174]
[1756480568296,4.293,209.63,209.48,3.84259174]
[1756480568497,8.22054893,209.64,209.49,8.97259174]
[1756480568695,8.22054893,209.64,209.5,3.84259174]
[1756480568901,7.39,209.64,209.5,3.84259174]
[1756480569097,11.6828,209.64,209.5,3.84259174]
[1756480569298,7.39,209.64,209.51,3.84259174]
[1756480569494,7.32,209.71,209.57,8.97259174]
[1756480569693,7.32,209.75,209.6,5.13]
[1756480570002,7.32,209.75,209.58,3.84259174]
[1756480570201,7.32,209.75,209.58,8.97259174]
[1756480570503,7.32,209.75,209.59,3.84259174]
[1756480571098,7.32,209.75,209.6,5.13]
[1756480571404,7.32,209.81,209.65,71.9036]
[1756480571603,8.14997448,209.81,209.65,5.13]
[1756480571807,8.14997448,209.81,209.68,4.2918]
[1756480571998,8.14997448,209.81,209.67,66.7669]
[1756480572198,66.6892,209.92,209.69,71.8903]
[1756480572405,66.6892,209.92,209.69,5.13]
[1756480572406,11.6084,209.86,209.69,5.13]
[1756480572603,196.9816,209.88,209.69,5.13]
[1756480572604,7.32,209.84,209.69,5.13]
[1756480572900,4.2892,209.82,209.69,5.13]
[1756480573102,7.32,209.81,209.64,5.13]
[1756480574208,7.32,209.83,209.64,5.13]
[1756480575411,7.32,209.83,209.66,5.13]
[1756480576408,7.32,209.8,209.6,5.13]
[1756480577006,25.99645615,209.8,209.6,5.13]
[1756480577204,346.65645615,209.8,209.55,5.11]
[1756480577604,130.42,209.79,209.55,8.95259174]
[1756480577805,7.32,209.78,209.55,5.11]
[1756480578006,137.7,209.78,209.57,18.67645615]
[1756480578214,137.7,209.78,209.58,5.11]
[1756480578609,7.32,209.78,209.58,5.11]
[1756480579014,11.6099,209.78,209.58,5.11]
[1756480579314,11.6099,209.78,209.59,5.11]
[1756480579512,7.32,209.78,209.59,5.11]
[1756480579814,7.32,209.73,209.59,5.11]
[1756480580005,7.32,209.82,209.59,5.11]
[1756480580401,103.98,209.81,209.63,5.11]
[1756480580606,7.32,209.8,209.63,5.11]
[1756480580809,42.46,209.79,209.63,5.11]
[1756480581002,49.56,209.78,209.63,5.11]
[1756480581204,7.32,209.77,209.63,5.11]
[1756480581712,7.32,209.77,209.63,23.78645615]
[1756480581906,10.48,209.82,209.63,18.67645615]
[1756480582111,17.8,209.82,209.64,5.11]
[1756480582414,4.2893,209.81,209.64,5.11]
[1756480583109,7.32,209.82,209.64,5.11]
[1756480583710,7.32,209.82,209.59,18.67645615]
[1756480584008,7.32,209.77,209.58,5.11]
[1756480584612,7.32,209.75,209.53,5.11]
[1756480585409,7.32,209.7,209.51,5.11]
[1756480586314,7.32,209.7,209.58,66.7953]
[1756480586510,7.32,209.7,209.56,71.9109]
[1756480586511,7.32,209.7,209.64,4.2927]
[1756480586905,7.32,209.7,209.57,66.7976]
[1756480587109,7.32,209.7,209.6,66.7888]
[1756480587406,66.7324,209.78,209.66,66.7683]
[1756480587407,131.06,209.77,209.66,66.7683]
[1756480587610,7.32,209.78,209.65,71.8821]
[1756480587611,7.32,209.78,209.71,4.2913]
[1756480587809,7.32,209.78,209.67,66.7663]
[1756480588007,7.32,209.78,209.68,66.7632]
[1756480588409,7.32,209.78,209.65,23.78645615]
[1756480588610,7.32,209.78,209.6,18.67645615]
[1756480588809,4.2907,209.74,209.64,4.2927]
[1756480589009,7.32,209.78,209.61,66.7851]
[1756480589206,130.96,209.77,209.61,66.7851]
[1756480589409,7.32,209.78,209.62,5.11]
[1756480590610,7.32,209.78,209.65,18.67645615]
[1756480590809,320.54,209.81,209.61,66.7851]
[1756480590810,7.32,209.8,209.61,66.7851]
[1756480591007,320.54,209.81,209.55,5.11]
[1756480591008,7.32,209.76,209.55,5.11]
[1756480591311,7.32,209.72,209.55,5.11]
[1756480591511,85.5,209.72,209.55,5.11]
[1756480591715,7.32,209.72,209.55,5.11]
[1756480592018,7.32,209.72,209.57,5.11]
[1756480592311,7.32,209.78,209.57,5.11]
[1756480592713,7.32,209.78,209.56,18.67645615]
[1756480592714,7.32,209.78,209.62,5.11]
[1756480593118,7.32,209.78,209.65,5.11]
[1756480593815,7.32,209.78,209.56,18.67645615]
[1756480593816,7.32,209.78,209.57,107.89]
[1756480594019,7.32,209.78,209.58,5.11]
[1756480594413,320.5,209.85,209.58,5.11]
[1756480594414,7.32,209.84,209.64,5.11]
[1756480594625,141.3,209.84,209.64,5.11]
[1756480594807,145.5887,209.84,209.64,5.11]
[1756480595720,7.32,209.84,209.64,5.11]
[1756480596111,7.32,209.84,209.69,5.11]
[1756480596318,7.32,209.9,209.74,5.11]
[1756480597221,7.32,209.9,209.74,139.05]
[1756480597522,7.32,209.9,209.74,5.11]
[1756480597715,11.6075,209.9,209.74,5.11]
[1756480598315,7.32,209.9,209.74,5.11]
[1756480599411,7.32,209.9,209.75,66.7412]
[1756480599817,387.97101945,209.94,209.68,70.60509174]
[1756480599818,7.6,209.93,209.68,3.84259174]
[1756480600121,7.6,209.77,209.63,5.12]
[1756480600821,7.6,209.8,209.57,5.12]
[1756480601029,4.2905,209.75,209.57,5.12]
[1756480601217,7.6,209.74,209.6,66.7883]
[1756480601525,7.6,209.74,209.61,66.784]
[1756480601920,7.6,209.74,209.61,5.12]
[1756480602123,88.1,209.81,209.61,8.96259174]
[1756480602317,7.6,209.82,209.66,5.12]
[1756480603122,7.6,209.82,209.66,30.52259174]
[1756480603326,7.6,209.82,209.66,8.96259174]
[1756480603721,7.6,209.82,209.67,3.84259174]
[1756480604223,7.6,209.82,209.69,3.84259174]
[1756480604422,4.2879,209.88,209.71,3.84259174]
[1756480604625,7.6,209.9,209.73,3.84259174]
[1756480604822,7.6,209.9,209.74,3.84259174]
[1756480605025,7.6,209.9,209.76,3.84259174]
[1756480605225,7.6,209.9,209.75,3.84259174]
[1756480605425,7.6,209.9,209.76,3.84259174]
[1756480606025,7.6,209.9,209.77,5.12]
[1756480606222,7.6,209.9,209.77,8.96259174]